fUST/lending_fUST_20240529
["ID","MTS","AMOUNT","RATE_DAILY","PERIOD"]
[328147860,1716935244278,-500.0,0.00022465,2]
[328147861,1716935244298,-500.0,0.00022465,2]
[328147862,1716935244318,-500.0,0.00022465,2]
[328147863,1716935244337,-136.56615635,0.00022465,2]
[328147864,1716935245130,-302.0,0.00020913,2]
[328147865,1716935249258,-225.6307336,0.00018775,2]
[328147866,1716935249278,-49.72730745,0.00020913,2]
[328147867,1716935249297,-461.34904634,0.00021,2]
[328147868,1716935249317,-10578.79409261,0.00022,2]
[328147869,1716935251126,-3120.20590739,0.00022,2]
[328147870,1716935251147,-521.78384365,0.00022465,2]
[328147871,1716935251167,-500.0,0.00022465,2]
[328147872,1716935251188,-500.0,0.00022465,2]
[328147873,1716935251208,-500.0,0.00022465,2]
[328147874,1716935251228,-1131.84,0.00022465,2]
[328147875,1716935251250,-500.0,0.00022465,2]
[328147876,1716935251270,-638.46,0.00022465,2]
[328147877,1716935251292,-4736.84,0.00022465,2]
[328147878,1716935251313,-961.24,0.00022465,2]
[328147879,1716935251333,-500.0,0.00022465,2]
[328147880,1716935251353,-506.14,0.00022465,2]
[328147881,1716935251373,-500.0,0.00022465,2]
[328147882,1716935251393,-500.0,0.00022465,2]
[328147883,1716935251412,-500.0,0.00022465,2]
[328147884,1716935251431,-1791.41,0.00022465,2]
[328147885,1716935251452,-874.67,0.00022465,2]
[328147886,1716935251472,-6775.61,0.00022465,2]
[328147887,1716935251493,-2567.92,0.00022465,2]
[328147888,1716935251514,-526.54,0.00022465,2]
[328147889,1716935251534,-500.0,0.00022465,2]
[328147890,1716935251553,-500.0,0.00022465,2]
[328147891,1716935251572,-5201.42,0.00022465,2]
[328147892,1716935251591,-1894.27,0.00022465,2]
[328147893,1716935251612,-700.46,0.00022465,2]
[328147894,1716935251632,-500.0,0.00022465,2]
[328147895,1716935251652,-500.0,0.00022465,2]
[328147896,1716935251673,-500.0,0.00022465,2]
[328147897,1716935251691,-1521.25,0.00022465,2]
[328147898,1716935251716,-500.0,0.00022465,2]
[328147899,1716935251736,-500.0,0.00022465,2]
[328147900,1716935251757,-504.19,0.00022465,2]
[328147901,1716935251778,-500.0,0.00022465,2]
[328147902,1716935251797,-360.44925231,0.00022465,2]
[328147903,1716935251816,-500.0,0.00022465,2]
[328147904,1716935251838,-1485.69,0.00022465,2]
[328147905,1716935251858,-500.0,0.00022465,2]
[328147906,1716935251880,-4648.91,0.00022465,2]
[328147907,1716935251900,-500.0,0.00022465,2]
[328147908,1716935251922,-500.0,0.00022465,2]
[328147909,1716935251941,-500.0,0.00022465,2]
[328147910,1716935251962,-500.0,0.00022465,2]
[328147911,1716935251981,-500.0,0.00022465,2]
[328147912,1716935252000,-908.38,0.00022465,2]
[328147913,1716935252020,-1371.39,0.00022465,2]
[328147914,1716935252040,-500.0,0.00022465,2]
[328147915,1716935252060,-500.0,0.00022465,2]
[328147916,1716935252079,-538.94,0.00022465,2]
[328147917,1716935252097,-13202.93733832,0.00022484,2]
[328147918,1716935353550,994.80246465,0.00018667,2]
[328147919,1716935353575,75.54955145,0.00018667,2]
[328147976,1716935432136,-351.72730745,0.00020913,2]
[328147977,1716935432145,-170.6389435,0.00021245,2]
[328147978,1716935432155,-990.36,0.00021917,2]
[328147979,1716935432164,-500.0,0.00021917,2]
[328147980,1716935432174,-3821.95448397,0.00021917,2]
[328147981,1716935432186,-322.78551603,0.00021917,2]
[328147982,1716935432195,-845.26,0.00021917,2]
[328147983,1716935432204,-500.0,0.00021917,2]
[328147984,1716935432213,-841.09,0.00021917,2]
[328147985,1716935432223,-500.0,0.00021917,2]
[328147986,1716935432232,-500.0,0.00021917,2]
[328147987,1716935432242,-5928.66,0.00021917,2]
[328147988,1716935432252,-500.0,0.00021917,2]
[328147989,1716935432261,-500.0,0.00021917,2]
[328147990,1716935432270,-500.0,0.00021917,2]
[328147991,1716935432439,-4551.24,0.00021917,2]
[328147992,1716935432448,-500.0,0.00021917,2]
[328147993,1716935432458,-612.48,0.00021917,2]
[328147994,1716935432467,-612.9,0.00021917,2]
[328147995,1716935432476,-1657.49,0.00021917,2]
[328147996,1716935432485,-500.0,0.00021917,2]
[328147997,1716935432495,-500.0,0.00021917,2]
[328147998,1716935432504,-500.0,0.00021917,2]
[328147999,1716935432513,-500.0,0.00021917,2]
[328148000,1716935432523,-500.0,0.00021917,2]
[328148001,1716935432532,-789.16,0.00021917,2]
[328148002,1716935432542,-500.0,0.00021917,2]
[328148003,1716935432562,-4067.79,0.00021917,2]
[328148004,1716935432574,-1299.98,0.00021917,2]
[328148005,1716935432583,-500.0,0.00021917,2]
[328148006,1716935432594,-500.0,0.00021917,2]
[328148007,1716935432604,-166.666666,0.00021918,2]
[328148008,1716935432614,-990.36,0.00022191,2]
[328148009,1716935432624,-500.0,0.00022191,2]
[328148010,1716935432634,-4144.74,0.00022191,2]
[328148011,1716935432644,-845.26,0.00022191,2]
[328148012,1716935432654,-500.0,0.00022191,2]
[328148013,1716935432664,-841.09,0.00022191,2]
[328148014,1716935432674,-500.0,0.00022191,2]
[328148015,1716935432685,-5928.66,0.00022191,2]
[328148016,1716935432695,-500.0,0.00022191,2]
[328148017,1716935432705,-500.0,0.00022191,2]
[328148018,1716935432717,-576.9800679,0.00022191,2]
[328148019,1716935432729,-4551.24,0.00022191,2]
[328148020,1716935432740,-500.0,0.00022191,2]
[328148021,1716935432750,-612.48,0.00022191,2]
[328148022,1716935432761,-612.9,0.00022191,2]
[328148023,1716935432771,-1657.49,0.00022191,2]
[328148024,1716935432781,-333.49249881,0.00022191,2]
[328148025,1716935432797,-166.50750119,0.00022191,2]
[328148026,1716935432806,-500.0,0.00022191,2]
[328148027,1716935432816,-500.0,0.00022191,2]
[328148028,1716935432825,-500.0,0.00022191,2]
[328148029,1716935432835,-500.0,0.00022191,2]
[328148030,1716935432845,-789.16,0.00022191,2]
[328148031,1716935432856,-500.0,0.00022191,2]
[328148032,1716935432867,-3433.52479881,0.00022191,2]
[328148152,1716935443304,-165.33278317,0.00020365,2]
[328148153,1716935443313,-500.0,0.00021917,2]
[328148154,1716935443322,-200.18493,0.0002219,2]
[328148155,1716935443332,-500.0,0.0002219,2]
[328148156,1716935443341,-500.0,0.0002219,2]
[328148157,1716935443351,-500.0,0.0002219,2]
[328148158,1716935443360,-500.0,0.0002219,2]
[328148159,1716935443370,-500.0,0.0002219,2]
[328148160,1716935443379,-526.99830749,0.0002219,2]
[328148161,1716935443389,-634.26520119,0.00022191,2]
[328148162,1716935443398,-1299.98,0.00022191,2]
[328148163,1716935443407,-256.80188671,0.00022191,2]
[328148169,1716935446378,-217.8830372,0.00021917,2]
[328148170,1716935446390,-640.0869628,0.00021917,2]
[328148171,1716935446399,-243.19811329,0.00022191,2]
[328148172,1716935446409,-500.0,0.00022191,2]
[328148173,1716935446418,-500.0,0.00022191,2]
[328148174,1716935446427,-857.97,0.00022191,2]
[328148175,1716935446437,-45.45492391,0.00022431,2]
[328148177,1716935534395,522.02460308,9.999e-05,2]
[328148178,1716935545897,522.02460308,9.999e-05,2]
[328148179,1716935545951,471.72034444,0.00015684,2]
[328148180,1716935545974,483.14651915,0.00015684,2]
[328148190,1716936331635,351.72730745,9.999e-05,2]
[328148191,1716936404755,-172.12097171,0.00015684,2]
[328148192,1716936404777,-185.17590904,0.00019866,2]
[328148193,1716936425104,-671.49575434,0.00019511,2]
[328148194,1716936425133,-1362.31948716,0.00019511,2]
[328148195,1716936425153,-248.794549,0.00019511,2]
[328148196,1716936425173,-351.72730745,0.00019865,2]
[328148197,1716936425193,-736.58723539,0.00019866,2]
[328148198,1716936425213,-1.79952361,0.0002,2]
[328148199,1716936426116,-1195.31303741,0.0002,2]
[328148200,1716936426137,-2.99913073,0.00020091,2]
[328148201,1716936448108,-293.22210577,0.00020091,2]
[328148202,1716936448130,-151.0,0.00020237,3]
[328148203,1716936448149,-194.96218124,0.00020912,2]
[328148204,1716936448330,-156.17432466,0.00020912,2]
[328148205,1716936448352,-154.93218307,0.00020912,2]
[328148206,1716936448372,-156.9721319,0.00020912,2]
[328148207,1716936448391,-155.32162016,0.00020912,2]
[328148208,1716936448411,-195.87279226,0.00020912,2]
[328148209,1716936448431,-175.38250649,0.00020912,2]
[328148210,1716936448451,-358.39138949,0.00020912,2]
[328148211,1716936448470,-1687.6620095,0.00020913,2]
[328148212,1716936448490,-167.518501,0.00021024,2]
[328148213,1716936448511,-166.666666,0.00021918,2]
[328148214,1716936448532,-432.7056552,0.00022089,2]
[328148215,1716936448553,-500.0,0.00022188,2]
[328148216,1716936448576,-500.0,0.00022188,2]
[328148217,1716936448598,-500.0,0.00022188,2]
[328148218,1716936448621,-500.0,0.00022188,2]
[328148219,1716936448643,-500.0,0.00022188,2]
[328148220,1716936448667,-176.26430057,0.00022188,2]
[328148221,1716936448687,-500.0,0.00022189,2]
[328148222,1716936448706,-500.0,0.00022189,2]
[328148223,1716936448726,-517.61,0.00022189,2]
[328148224,1716936448745,-500.0,0.00022189,2]
[328148225,1716936448764,-539.38560213,0.00022189,2]
[328148226,1716936448798,-500.0,0.00022189,2]
[328148227,1716936448820,-500.0,0.00022189,2]
[328148228,1716936448841,-576.05,0.00022189,2]
[328148229,1716936448862,-500.0,0.00022189,2]
[328148230,1716936448884,-558.65,0.00022189,2]
[328148231,1716936448906,-907.83,0.00022189,2]
[328148232,1716936448927,-225.22170676,0.00022189,2]
[328148233,1716936448949,-500.0,0.00022189,2]
[328148234,1716936448972,-1485.43712375,0.00022189,2]
[328148235,1716936452174,-2313.90287625,0.00022189,2]
[328148236,1716936452196,-771.0,0.00022189,2]
[328148237,1716936452220,-138.1493602,0.00022189,2]
[328148286,1716936632348,-191.868141,0.00021028,2]
[328148288,1716936632357,-378.6174483,0.00022089,2]
[328148290,1716936632366,-268.62816756,0.00022188,2]
[328148292,1716936632378,-231.37183244,0.00022188,2]
[328148295,1716936632387,-617.1764202,0.00022188,2]
[328148401,1716936642087,-1270.34,0.00022188,2]
[328148431,1716936643543,-359.4135798,0.00022188,2]
[328148432,1716936643553,-4650.87922005,0.00022188,2]
[328148510,1716936646736,-104.39077995,0.00022188,2]
[328148511,1716936646746,-57.24237221,0.00022188,2]
[328148512,1716936663273,427.04789744,0.00015684,2]
[328148515,1716936717001,409.51221885,9.999e-05,2]
[328148516,1716936717025,634.80450181,9.999e-05,2]
[328148521,1716937520048,720.8899549,9.999e-05,2]
[328148522,1716937601241,13766.20546761,9.999e-05,2]
[328148523,1716937626170,-197.48082434,0.000189,2]
[328148524,1716937626193,-126.17969778,0.00019488,2]
[328148525,1716937631103,-76.46502322,0.00019488,2]
[328148526,1716937631124,-271.0660722,0.0001971,2]
[328148527,1716937631145,-151.0,0.00020302,3]
[328148528,1716937631167,-151.0,0.00020548,3]
[328148529,1716937631186,-395.73690521,0.00020912,2]
[328148530,1716937631206,-836.55616474,0.00020912,2]
[328148531,1716937631226,-125.79026628,0.00020912,2]
[328148532,1716937637107,-267.14418879,0.00020912,2]
[328148533,1716937637128,-378.64267235,0.00020912,2]
[328148534,1716937637149,-690.95275409,0.00020912,2]
[328148535,1716937637168,-1044.31672066,0.00020912,2]
[328148536,1716937637188,-158.58875339,0.00020912,2]
[328148537,1716937637208,-202.48786511,0.00020912,2]
[328148538,1716937653089,-627.17792572,0.00015684,2]
[328148539,1716937653109,-9.18009256,0.00020912,2]
[328148540,1716937653127,-339.64168737,0.00020912,2]
[328148541,1716937653154,-264.25292189,0.00020912,2]
[328148542,1716937653174,-1543.12375851,0.00020912,2]
[328148543,1716937653193,-270.78508112,0.00020912,2]
[328148544,1716937653213,-688.47021643,0.00020913,2]
[328148545,1716937653244,-2376.78963816,0.00020913,2]
[328148546,1716937653263,-166.666666,0.00021918,2]
[328148547,1716937653282,-620.61339195,0.00021929,2]
[328148548,1716937653304,-304.02447834,0.00022186,2]
[328148561,1716937832595,-166.331504,0.00020914,2]
[328148563,1716937832605,-83.668496,0.00022087,2]
[328148566,1716937832617,-247.62177128,0.00022087,2]
[328148568,1716937832626,-500.0,0.00022185,2]
[328148570,1716937832636,-500.0,0.00022185,2]
[328148572,1716937832644,-338.59440746,0.00022185,2]
[328148574,1716937832655,-161.40559254,0.00022185,2]
[328148576,1716937832664,-126.51697617,0.00022185,2]
[328148578,1716937832676,-373.48302383,0.00022185,2]
[328148580,1716937832685,-362.06777375,0.00022185,2]
[328148582,1716937832697,-680.39044492,0.00022186,7]
[328148585,1716937832710,-332.38819351,0.00022186,7]
[328148848,1716937838493,-1296.1,0.00022186,7]
[328148850,1716937838505,-996.20511983,0.00022186,7]
[328148851,1716937838516,-318.77495511,0.00022186,7]
[328148852,1716937838653,-678.67039657,0.00022186,7]
[328148853,1716937838664,-500.0,0.00022186,2]
[328148854,1716937838674,-500.0,0.00022186,2]
[328148855,1716937838684,-794.84,0.00022186,2]
[328148856,1716937838693,-870.0,0.00022186,2]
[328148857,1716937838702,-500.0,0.00022186,2]
[328148858,1716937838712,-3641.04,0.00022186,2]
[328148859,1716937838722,-738.87,0.00022186,2]
[328148860,1716937838732,-672.11614523,0.00022186,2]
[328148861,1716937838742,-223.07296701,0.00022186,2]
[328148862,1716937838752,-156.6748638,0.00022186,2]
[328148863,1716937838762,-274.18094634,0.00022186,2]
[328148864,1716937838772,-3983.08440167,0.00022186,2]
[328148865,1716937838781,-461.34904634,0.00022186,2]
[328148866,1716937838790,-500.0,0.00022186,2]
[328148867,1716937838801,-500.0,0.00022186,2]
[328148868,1716937838810,-1567.48,0.00022186,2]
[328148869,1716937838820,-5236.47,0.00022186,2]
[328148870,1716937838830,-4171.97,0.00022186,2]
[328148871,1716937838840,-2153.31,0.00022186,2]
[328148872,1716937838850,-500.0,0.00022186,2]
[328148873,1716937838860,-561.83,0.00022186,2]
[328148874,1716937838869,-320.53083412,0.00022186,2]
[328148875,1716937838882,-1198.83916588,0.00022186,2]
[328148876,1716937838891,-500.0,0.00022186,2]
[328148877,1716937838902,-500.0,0.00022186,2]
[328148878,1716937838911,-1078.22008381,0.00022186,2]
[328148887,1716937842839,-2650.58991619,0.00022186,2]
[328148888,1716937842848,-500.0,0.00022186,2]
[328148891,1716937842858,-500.0,0.00022186,2]
[328148892,1716937842868,-500.0,0.00022186,2]
[328148894,1716937842877,-500.0,0.00022186,2]
[328148896,1716937842886,-500.0,0.00022186,2]
[328148898,1716937842896,-500.0,0.00022186,2]
[328148900,1716937842905,-8074.48676478,0.00022186,2]
[328149015,1716937844049,-0.00170449,0.00022186,2]
[328149186,1716937846675,-3643.39681558,0.00022186,2]
[328149187,1716937869744,-4055.28584781,0.00022736,7]
[328149188,1716937878367,998.3141017,0.00015684,2]
[328149189,1716937878387,139.28545959,0.00015684,2]
[328149190,1716937898225,-2151.26455497,0.00022187,7]
[328149191,1716937898259,-2027.64292391,0.00023,7]
[328149192,1716937901805,299.7786707,0.00015684,2]
[328149193,1716937902862,154.86062544,0.00015684,2]
[328149194,1716937915686,340.13354439,0.00015684,2]
[328149195,1716937915708,811.6640119,0.00015684,2]
[328149196,1716937915730,1000.0,0.00015684,2]
[328149197,1716937915756,922.67899414,0.00015684,2]
[328149198,1716937929474,-1000.0,0.00024,7]
[328149199,1716937947417,-9265.36116623,0.00015684,2]
[328149200,1716937947439,-156.14550824,0.00015684,2]
[328149201,1716937947464,-78.49332553,0.00015684,2]
[328149202,1716938071869,-185.18118092,0.00015684,2]
[328149203,1716938071889,-837.617847,0.00019822,2]
[328149204,1716938071909,-150.0,0.00020086,2]
[328149205,1716938071930,-3152.3561543,0.0002055,2]
[328149206,1716938071948,-194.65850964,0.00020912,2]
[328149207,1716938071968,-281.83220357,0.00020912,2]
[328149208,1716938071989,-488.34156332,0.00020912,2]
[328149209,1716938072010,-514.21922606,0.00020912,2]
[328149210,1716938072030,-154.93802479,0.00020912,2]
[328149211,1716938072048,-154.93802479,0.00020912,2]
[328149212,1716938072067,-1044.31672066,0.00020912,2]
[328149213,1716938072086,-1340.26998009,0.00020912,2]
[328149214,1716938072107,-175.78295392,0.00020912,2]
[328149215,1716938072127,-1325.54761094,0.00020912,2]
[328149218,1716938714854,351.72730745,9.999e-05,2]
[328149219,1716938751160,-2118.47806584,0.00019443,2]
[328149220,1716938826247,-250.0,0.00018637,2]
[328149221,1716938826268,-1965.87194825,0.00019443,2]
[328149222,1716938827176,-328.51481491,0.00019443,2]
[328149223,1716938827198,-289.87898387,0.00019572,2]
[328149224,1716938827218,-2192.31185736,0.00019596,2]
[328149225,1716938831102,-857.47480481,0.00019596,2]
[328149226,1716938836107,-302.0,0.00019596,2]
[328149228,1716938951088,-170.638943,0.00019332,2]
[328149229,1716938951108,-461.4843564,0.00019448,2]
[328149230,1716938951128,-866.24817313,0.00019596,2]
[328149231,1716938951147,-302.0,0.00019639,2]
[328149232,1716938951168,-24900.0,0.0001964,2]
[328149233,1716938951188,-2306.0225443,0.00019672,2]
[328149234,1716939022502,910.41332149,0.00015684,2]
[328149235,1716939022525,44.4535421,0.00015684,2]
[328149311,1716939032977,-150.0,0.00020636,2]
[328149313,1716939032987,-236.01217285,0.00020912,2]
[328149355,1716939038670,-21.5164878,0.00020912,2]
[328149356,1716939038680,-447.71657105,0.00020912,2]
[328149357,1716939038690,-395.73690521,0.00020912,2]
[328149358,1716939038699,-154.86062544,0.00020912,2]
[328149359,1716939038709,-672.4458868,0.00020912,2]
[328149360,1716939038719,-239.04002635,0.00020913,2]
[328149361,1716939038728,-166.666666,0.00021918,2]
[328149362,1716939038738,-253.64411086,0.00022083,2]
[328149363,1716939038747,-5038.01,0.00022181,2]
[328149364,1716939038757,-500.0,0.00022181,2]
[328149365,1716939038766,-1521.59841332,0.00022181,2]
[328149366,1716939038837,-2476.54158668,0.00022181,2]
[328149367,1716939038847,-419.63206198,0.00022181,2]
[328149370,1716939043011,-118.78793802,0.00022181,2]
[328149371,1716939043020,-500.0,0.00022181,2]
[328149372,1716939043029,-2063.58,0.00022181,2]
[328149373,1716939043038,-500.0,0.00022181,2]
[328149374,1716939043047,-500.0,0.00022181,2]
[328149375,1716939043056,-500.0,0.00022181,2]
[328149376,1716939043065,-500.0,0.00022181,2]
[328149377,1716939043074,-500.0,0.00022181,2]
[328149378,1716939043083,-500.0,0.00022181,2]
[328149379,1716939043092,-500.0,0.00022181,2]
[328149380,1716939043101,-500.0,0.00022181,2]
[328149381,1716939043110,-500.0,0.00022181,2]
[328149382,1716939043119,-761.72,0.00022182,2]
[328149383,1716939043128,-490.88075341,0.00022182,2]
[328149384,1716939043141,-9.11924659,0.00022182,2]
[328149385,1716939043150,-494.84551082,0.00022182,2]
[328149390,1716939044053,-5.15448918,0.00022182,2]
[328149391,1716939044062,-833.75,0.00022182,2]
[328149392,1716939044071,-500.0,0.00022182,2]
[328149393,1716939044080,-3489.33,0.00022182,2]
[328149394,1716939044089,-708.09,0.00022182,2]
[328149395,1716939044098,-500.0,0.00022182,2]
[328149396,1716939044107,-1573.04,0.00022182,2]
[328149397,1716939044117,-500.0,0.00022182,2]
[328149398,1716939044126,-1389.44304247,0.00022182,2]
[328149399,1716939044791,-66.61695753,0.00022182,2]
[328149400,1716939044800,-500.0,0.00022182,2]
[328149401,1716939044811,-500.0,0.00022182,2]
[328149402,1716939044825,-3573.44,0.00022182,2]
[328149403,1716939044835,-85.05077996,0.00022182,2]
[328149404,1716939044847,-414.94922004,0.00022182,2]
[328149405,1716939044858,-260.64737157,0.00022182,2]
[328149406,1716939044867,-514.14105992,0.00022182,2]
[328149407,1716939044891,-0.00220536,0.00022182,2]
[328149413,1716939046907,-697.86673472,0.00022182,2]
[328149414,1716939046917,-500.0,0.00022182,2]
[328149416,1716939046927,-500.0,0.00022182,2]
[328149417,1716939046936,-500.0,0.00022182,2]
[328149418,1716939046946,-500.0,0.00022182,2]
[328149419,1716939046955,-630.62595054,0.00022182,2]
[328149420,1716939046964,-500.0,0.00022183,2]
[328149421,1716939046973,-500.0,0.00022183,2]
[328149422,1716939046982,-500.0,0.00022183,2]
[328149423,1716939046992,-552.05,0.00022183,2]
[328149424,1716939047003,-500.0,0.00022183,2]
[328149425,1716939047012,-535.38,0.00022183,2]
[328149426,1716939047021,-500.0,0.00022183,2]
[328149427,1716939047031,-500.0,0.00022183,2]
[328149428,1716939047040,-765.33,0.00022183,2]
[328149429,1716939047049,-1331.09,0.00022183,2]
[328149430,1716939047059,-500.0,0.00022183,2]
[328149431,1716939047068,-1199.97,0.00022183,2]
[328149432,1716939047077,-526.65,0.00022183,2]
[328149433,1716939047087,-500.0,0.00022183,2]
[328149434,1716939047096,-516.49,0.00022183,2]
[328149435,1716939047106,-500.0,0.00022183,2]
[328149436,1716939047115,-500.0,0.00022183,2]
[328149437,1716939047125,-151.0,0.00022183,2]
[328149438,1716939047134,-521.97638497,0.00022183,2]
[328149439,1716939047144,-151.0,0.00022183,2]
[328149440,1716939047153,-500.0,0.00022183,2]
[328149441,1716939047164,-151.0,0.00022183,2]
[328149442,1716939047173,-151.0,0.00022183,2]
[328149443,1716939047183,-500.0,0.00022183,2]
[328149444,1716939047192,-500.0,0.00022183,2]
[328149445,1716939047201,-561.44,0.00022183,2]
[328149446,1716939047211,-500.0,0.00022183,2]
[328149447,1716939047221,-723.4,0.00022183,2]
[328149448,1716939047231,-786.47,0.00022183,2]
[328149449,1716939047241,-256.15850059,0.00022183,2]
[328149450,1716939047250,-500.0,0.00022185,2]
[328149451,1716939047259,-500.0,0.00022185,2]
[328149452,1716939047269,-500.0,0.00022185,2]
[328149453,1716939047278,-500.0,0.00022185,2]
[328149454,1716939047287,-500.0,0.00022185,2]
[328149455,1716939047297,-500.0,0.00022185,2]
[328149456,1716939047306,-500.0,0.00022185,2]
[328149457,1716939047316,-500.0,0.00022185,2]
[328149458,1716939047325,-500.0,0.00022185,2]
[328149459,1716939047334,-500.0,0.00022185,2]
[328149460,1716939047343,-500.0,0.00022185,2]
[328149461,1716939047353,-500.0,0.00022185,2]
[328149462,1716939047362,-180.36270236,0.00022185,2]
[328149463,1716939047374,-594.45729764,0.00022185,2]
[328149464,1716939047383,-151.0,0.00022185,2]
[328149465,1716939047392,-1.32212436,0.00022185,2]
[328149466,1716939047403,-149.67787564,0.00022185,2]
[328149467,1716939047412,-628.71712436,0.00022186,2]
[328149468,1716939047423,-672.2517208,0.00022186,2]
[328149469,1716939098434,325.70900667,0.00015684,2]
[328149470,1716939151843,610.36745123,0.00019935,2]
[328149475,1716939916279,922.33231082,0.00014,2]
[328149476,1716939927549,351.72730745,9.999e-05,2]
[328149478,1716939949153,-211.84780658,0.00018037,2]
[328149479,1716940031103,-524.48191459,0.00018037,2]
[328149480,1716940031124,-150.0,0.000189,2]
[328149481,1716940031146,-319.26303293,0.00018912,2]
[328149482,1716940033174,-2387.39189407,0.00018912,2]
[328149483,1716940033196,-403.88807297,0.00018987,2]
[328149484,1716940033218,-1914.91878856,0.00018988,2]
[328149485,1716940041089,-1928.86076477,0.00018988,2]
[328149486,1716940042149,-3512.89211451,0.00018988,2]
[328149487,1716940053105,-1198.31216814,0.00018988,2]
[328149490,1716940146134,-16345.01616402,0.00018988,2]
[328149491,1716940146157,-1307.900351,0.00019052,2]
[328149492,1716940146188,-221.93859702,0.00019078,2]
[328149493,1716940146214,-3000.0,0.00019151,2]
[328149494,1716940146236,-166.331504,0.00019178,2]
[328149495,1716940146260,-11715.0995804,0.00019242,2]
[328149496,1716940146282,-166.104537,0.00019612,2]
[328149497,1716940146303,-203.69548027,0.00019717,2]
[328149498,1716940146324,-1197.11256102,0.0002,2]
[328149626,1716940237812,-2109.39586792,0.00020891,2]
[328149628,1716940237821,-634.80450181,0.0002091,2]
[328149631,1716940237830,-500.0,0.00020911,2]
[328149632,1716940237839,-500.0,0.00020911,2]
[328149634,1716940237848,-500.0,0.00020911,2]
[328149636,1716940237857,-211.19340358,0.00020911,2]
[328149638,1716940237866,-500.0,0.00020911,2]
[328149640,1716940237875,-500.0,0.00020911,2]
[328149642,1716940237884,-1497.56271984,0.00020912,2]
[328149644,1716940237893,-1279.26662071,0.00020912,2]
[328149647,1716940237902,-690.95275409,0.00020912,2]
[328149648,1716940237911,-943.36429939,0.00020912,2]
[328149650,1716940237920,-239.20246285,0.00020912,2]
[328149652,1716940237929,-160.27099543,0.00020912,2]
[328149653,1716940237937,-1218.15262448,0.00020912,2]
[328149654,1716940237950,-468.03789724,0.00020912,2]
[328149655,1716940237959,-309.72126324,0.00020912,2]
[328149656,1716940237968,-528.89075591,0.00020912,2]
[328149657,1716940237977,-916.65407287,0.00020912,2]
[328149658,1716940237986,-261.30468809,0.00020912,2]
[328149659,1716940237995,-883.9662757,0.00020912,2]
[328149660,1716940238006,-31247.78266989,0.00020912,2]
[328149666,1716940241177,-9854.05029831,0.00020912,2]
[328149667,1716940241187,-551.07722985,0.00020912,2]
[328149668,1716940241200,-1351.93473586,0.00020912,2]
[328149669,1716940241211,-1098.17565538,0.00020912,2]
[328149670,1716940241220,-11048.85621458,0.00020912,2]
[328149671,1716940241234,-35219.73208185,0.00020912,2]
[328149672,1716940241243,-720.49251095,0.00020912,2]
[328149673,1716940241254,-1057.1252514,0.00020912,2]
[328149674,1716940241263,-151.0,0.00020912,2]
[328149675,1716940241277,-151.0,0.00020912,2]
[328149676,1716940241288,-151.0,0.00020912,2]
[328149677,1716940241298,-151.0,0.00020912,2]
[328149678,1716940241309,-151.0,0.00020912,2]
[328149679,1716940241319,-2151.26455497,0.00020912,7]
[328149680,1716940241329,-836.37406668,0.00020913,2]
[328149681,1716940241339,-7902.09549174,0.00020913,2]
[328149682,1716940241351,-455.92409776,0.00020913,2]
[328149683,1716940241360,-156.6263305,0.00020913,2]
[328149684,1716940241370,-285.35051707,0.00020913,2]
[328149685,1716940241379,-175.78295392,0.00020913,2]
[328149686,1716940241389,-218.232094,0.00020913,2]
[328149687,1716940241399,-151.0,0.00020913,2]
[328149688,1716940241408,-151.0,0.00020913,2]
[328149689,1716940241418,-1143.89970046,0.00021,2]